[Event "Titled Tuesday Blitz April 11 Late 2023"]
[White "Ibarra Jerez, Jose Carlos"]
[Black "Goltseva, Ekaterina"]
[WhiteFideId "2226332"]
[BlackFideId "24173770"]
[WhiteElo "2638"]
[BlackElo "2200"]
[Result "1-0"]
[Round "03"]
[TimeControl "180+2"]
[Date "2023.04.11"]
[WhiteClock "0:00:15"]
[BlackClock "0:00:01"]

1. e4 {[%clk 0:03:00]}  e6 {[%clk 0:02:37]} 2. d4 {[%clk 0:02:59]}  d5 {[%clk 0:02:37]} 3. Nc3 {[%clk 0:02:59]}  h6 {[%clk 0:02:37]} 4. Nf3 {[%clk 0:02:55]}  Nf6 {[%clk 0:02:36]} 5. e5 {[%clk 0:02:46]}  Ne4 {[%clk 0:02:36]} 6. Bd3 {[%clk 0:02:44]}  Bb4 {[%clk 0:02:26]} 7. Bd2 {[%clk 0:02:43]}  Nxd2 {[%clk 0:02:26]} 8. Qxd2 {[%clk 0:02:40]}  c5 {[%clk 0:02:23]} 9. a3 {[%clk 0:02:32]}  cxd4 {[%clk 0:01:56]} 10. axb4 {[%clk 0:02:32]}  dxc3 {[%clk 0:01:57]} 11. Qxc3 {[%clk 0:02:32]}  Nc6 {[%clk 0:01:54]} 12. b5 {[%clk 0:02:31]}  Ne7 {[%clk 0:01:51]} 13. O-O {[%clk 0:02:30]}  Bd7 {[%clk 0:01:49]} 14. Nd4 {[%clk 0:02:30]}  O-O {[%clk 0:01:44]} 15. f4 {[%clk 0:02:28]}  Rc8 {[%clk 0:01:39]} 16. Qb4 {[%clk 0:02:27]}  Qb6 {[%clk 0:01:31]} 17. c3 {[%clk 0:02:26]}  Rfe8 {[%clk 0:01:27]} 18. Qd6 {[%clk 0:02:12]}  Rc7 {[%clk 0:01:08]} 19. Rxa7 {[%clk 0:01:49]}  Nc8 {[%clk 0:01:08]} 20. Qxb6 {[%clk 0:01:36]}  Nxb6 {[%clk 0:01:09]} 21. Rfa1 {[%clk 0:01:33]}  f6 {[%clk 0:01:03]} 22. Re1 {[%clk 0:01:30]}  Kf7 {[%clk 0:00:58]} 23. Kf2 {[%clk 0:01:29]}  Bc8 {[%clk 0:00:56]} 24. Ke3 {[%clk 0:01:20]}  Nd7 {[%clk 0:00:55]} 25. b6 {[%clk 0:01:14]}  Nxb6 {[%clk 0:00:52]} 26. Nb5 {[%clk 0:01:14]}  Rc6 {[%clk 0:00:45]} 27. Nd6+ {[%clk 0:01:13]}  Rxd6 {[%clk 0:00:46]} 28. exd6 {[%clk 0:01:14]}  e5 {[%clk 0:00:43]} 29. fxe5 {[%clk 0:01:11]}  fxe5 {[%clk 0:00:44]} 30. Ba6 {[%clk 0:01:03]}  Rd8 {[%clk 0:00:36]} 31. Rf1+ {[%clk 0:00:55]}  Kg8 {[%clk 0:00:16]} 32. Bxb7 {[%clk 0:00:33]}  Rd7 {[%clk 0:00:14]} 33. Bxc8 {[%clk 0:00:33]}  Rxa7 {[%clk 0:00:09]} 34. Be6+ {[%clk 0:00:33]}  Kh7 {[%clk 0:00:08]} 35. d7 {[%clk 0:00:26]}  Nxd7 {[%clk 0:00:05]} 36. Rf7 {[%clk 0:00:23]}  Rb7 {[%clk 0:00:01]} 37. Rxd7 {[%clk 0:00:17]}  Rxb2 {[%clk 0:00:02]} 38. Bf5+ {[%clk 0:00:17]}  Kg8 {[%clk 0:00:01]} 39. Kf3 {[%clk 0:00:15]} 1-0


[Site "https://www.chess.com"]

[Event "Titled Tuesday Blitz April 11 Late 2023"]
[White "Urazayev, Arystanbek"]
[Black "Pasti, Aron"]
[WhiteFideId "13709810"]
[BlackFideId "785857"]
[WhiteElo "2449"]
[BlackElo "2173"]
[Result "1-0"]
[Round "03"]
[TimeControl "180+2"]
[Date "2023.04.11"]
[WhiteClock "0:00:38"]
[BlackClock "0:00:04"]

1. c4 {[%clk 0:03:00]}  e5 {[%clk 0:02:48]} 2. Nc3 {[%clk 0:02:59]}  Nf6 {[%clk 0:02:48]} 3. Nf3 {[%clk 0:02:59]}  Nc6 {[%clk 0:02:48]} 4. e3 {[%clk 0:02:58]}  Bb4 {[%clk 0:02:49]} 5. Qc2 {[%clk 0:02:58]}  Bxc3 {[%clk 0:02:49]} 6. bxc3 {[%clk 0:02:58]}  d5 {[%clk 0:02:49]} 7. cxd5 {[%clk 0:02:56]}  Qxd5 {[%clk 0:02:49]} 8. Rb1 {[%clk 0:02:53]}  e4 {[%clk 0:02:46]} 9. Nd4 {[%clk 0:02:50]}  Ne5 {[%clk 0:02:46]} 10. c4 {[%clk 0:02:41]}  Qd8 {[%clk 0:02:32]} 11. Ba3 {[%clk 0:02:40]}  b6 {[%clk 0:02:23]} 12. c5 {[%clk 0:02:40]}  O-O {[%clk 0:02:09]} 13. cxb6 {[%clk 0:02:40]}  axb6 {[%clk 0:02:10]} 14. Bxf8 {[%clk 0:02:39]}  Qxf8 {[%clk 0:02:10]} 15. Be2 {[%clk 0:02:40]}  c5 {[%clk 0:02:07]} 16. Nb5 {[%clk 0:02:40]}  Bg4 {[%clk 0:01:49]} 17. Bxg4 {[%clk 0:02:14]}  Nd3+ {[%clk 0:01:49]} 18. Ke2 {[%clk 0:02:15]}  Nxg4 {[%clk 0:01:49]} 19. f3 {[%clk 0:02:16]}  Nge5 {[%clk 0:01:35]} 20. f4 {[%clk 0:02:10]}  Nc6 {[%clk 0:01:30]} 21. Nc3 {[%clk 0:02:10]}  Ncb4 {[%clk 0:01:28]} 22. Qb3 {[%clk 0:02:09]}  Qc8 {[%clk 0:01:26]} 23. h3 {[%clk 0:02:01]}  Qd7 {[%clk 0:01:15]} 24. Nxe4 {[%clk 0:01:38]}  Qe7 {[%clk 0:01:13]} 25. Kf3 {[%clk 0:01:28]}  Qb7 {[%clk 0:00:37]} 26. a3 {[%clk 0:01:11]}  Re8 {[%clk 0:00:24]} 27. axb4 {[%clk 0:01:11]}  Qxe4+ {[%clk 0:00:24]} 28. Kg3 {[%clk 0:01:11]}  g5 {[%clk 0:00:21]} 29. Rhf1 {[%clk 0:01:01]}  gxf4+ {[%clk 0:00:19]} 30. Kh2 {[%clk 0:00:56]}  c4 {[%clk 0:00:14]} 31. Qa4 {[%clk 0:00:56]}  fxe3 {[%clk 0:00:12]} 32. dxe3 {[%clk 0:00:52]}  Qe5+ {[%clk 0:00:11]} 33. Kh1 {[%clk 0:00:51]}  Qxe3 {[%clk 0:00:10]} 34. Qd7 {[%clk 0:00:50]}  Re7 {[%clk 0:00:09]} 35. Qc8+ {[%clk 0:00:51]}  Kg7 {[%clk 0:00:08]} 36. Qg4+ {[%clk 0:00:49]}  Kh8 {[%clk 0:00:07]} 37. Qxc4 {[%clk 0:00:48]}  Nf2+ {[%clk 0:00:05]} 38. Rxf2 {[%clk 0:00:39]}  Qxf2 {[%clk 0:00:05]} 39. Rf1 {[%clk 0:00:38]}  Re1 {[%clk 0:00:04]} 40. Qc3+ {[%clk 0:00:38]} 1-0


[Site "https://www.chess.com"]

[Event "Titled Tuesday Blitz April 11 Late 2023"]
[White "Harvey, Marcus R"]
[Black "Vovk, Orest"]
[WhiteFideId "400092"]
[BlackFideId "14113490"]
[WhiteElo "2457"]
[BlackElo "2215"]
[Result "1-0"]
[Round "03"]
[TimeControl "180+2"]
[Date "2023.04.11"]
[WhiteClock "0:00:45"]
[BlackClock "0:00:03"]

1. d4 {[%clk 0:03:00]}  h6 {[%clk 0:02:54]} 2. e4 {[%clk 0:02:59]}  g5 {[%clk 0:02:54]} 3. h4 {[%clk 0:02:58]}  g4 {[%clk 0:02:54]} 4. h5 {[%clk 0:02:58]}  d5 {[%clk 0:02:53]} 5. exd5 {[%clk 0:02:57]}  Qxd5 {[%clk 0:02:52]} 6. Nc3 {[%clk 0:02:57]}  Qa5 {[%clk 0:02:50]} 7. Bc4 {[%clk 0:02:55]}  Bg7 {[%clk 0:02:49]} 8. Ne2 {[%clk 0:02:54]}  c5 {[%clk 0:02:46]} 9. Be3 {[%clk 0:02:51]}  Nc6 {[%clk 0:02:43]} 10. dxc5 {[%clk 0:02:50]}  g3 {[%clk 0:02:35]} 11. fxg3 {[%clk 0:02:37]}  Bg4 {[%clk 0:02:30]} 12. O-O {[%clk 0:02:30]}  Nf6 {[%clk 0:02:20]} 13. Qe1 {[%clk 0:02:24]}  O-O {[%clk 0:02:13]} 14. a3 {[%clk 0:02:10]}  Nxh5 {[%clk 0:02:09]} 15. b4 {[%clk 0:02:10]}  Qc7 {[%clk 0:02:06]} 16. Nf4 {[%clk 0:01:59]}  Qe5 {[%clk 0:01:57]} 17. Ncd5 {[%clk 0:01:26]}  Qxa1 {[%clk 0:01:50]} 18. Qxa1 {[%clk 0:01:27]}  Bxa1 {[%clk 0:01:49]} 19. Rxa1 {[%clk 0:01:27]}  Nxg3 {[%clk 0:01:46]} 20. b5 {[%clk 0:01:21]}  Ne5 {[%clk 0:01:32]} 21. Nxe7+ {[%clk 0:01:21]}  Kh7 {[%clk 0:01:30]} 22. Bb3 {[%clk 0:01:14]}  Nf5 {[%clk 0:01:05]} 23. Nxf5 {[%clk 0:01:04]}  Bxf5 {[%clk 0:01:06]} 24. Nd5 {[%clk 0:01:03]}  Rad8 {[%clk 0:00:51]} 25. Bd4 {[%clk 0:00:57]}  Ng4 {[%clk 0:00:42]} 26. c6 {[%clk 0:00:56]}  bxc6 {[%clk 0:00:39]} 27. bxc6 {[%clk 0:00:57]}  Be6 {[%clk 0:00:35]} 28. c4 {[%clk 0:00:56]}  Rd6 {[%clk 0:00:26]} 29. Bc5 {[%clk 0:00:54]}  Rdd8 {[%clk 0:00:17]} 30. c7 {[%clk 0:00:52]}  Rc8 {[%clk 0:00:15]} 31. Bxf8 {[%clk 0:00:52]}  Rxf8 {[%clk 0:00:16]} 32. Ne7 {[%clk 0:00:48]}  Ne5 {[%clk 0:00:10]} 33. Re1 {[%clk 0:00:47]}  Ng6 {[%clk 0:00:04]} 34. Rxe6 {[%clk 0:00:46]}  fxe6 {[%clk 0:00:04]} 35. c8=Q {[%clk 0:00:45]}  Rxc8 {[%clk 0:00:04]} 36. Nxc8 {[%clk 0:00:46]}  a5 {[%clk 0:00:04]} 37. c5 {[%clk 0:00:46]}  Kg7 {[%clk 0:00:04]} 38. c6 {[%clk 0:00:45]}  Kf7 {[%clk 0:00:03]} 39. Nd6+ {[%clk 0:00:45]}  Ke7 {[%clk 0:00:03]} 40. c7 {[%clk 0:00:45]} 1-0


[Site "https://www.chess.com"]

[Event "Titled Tuesday Blitz April 11 Late 2023"]
[White "Bilych, Olexiy"]
[Black "Tworuszka, Michal"]
[WhiteFideId "14156504"]
[BlackFideId "1117858"]
[WhiteElo "2320"]
[BlackElo "2260"]
[Result "1-0"]
[Round "03"]
[TimeControl "180+2"]
[Date "2023.04.11"]
[WhiteClock "0:01:21"]
[BlackClock "0:00:02"]

1. d4 {[%clk 0:03:00]}  d5 {[%clk 0:02:53]} 2. c4 {[%clk 0:03:00]}  e6 {[%clk 0:02:52]} 3. Nf3 {[%clk 0:03:01]}  Nf6 {[%clk 0:02:52]} 4. Nc3 {[%clk 0:03:01]}  Bb4 {[%clk 0:02:47]} 5. cxd5 {[%clk 0:02:58]}  exd5 {[%clk 0:02:46]} 6. Qa4+ {[%clk 0:02:59]}  Nc6 {[%clk 0:02:46]} 7. Bg5 {[%clk 0:03:00]}  h6 {[%clk 0:02:44]} 8. Bxf6 {[%clk 0:03:00]}  Qxf6 {[%clk 0:02:44]} 9. e3 {[%clk 0:03:00]}  O-O {[%clk 0:02:38]} 10. Rc1 {[%clk 0:02:58]}  a6 {[%clk 0:02:27]} 11. a3 {[%clk 0:02:52]}  Bxc3+ {[%clk 0:02:12]} 12. Rxc3 {[%clk 0:02:53]}  Qg6 {[%clk 0:02:08]} 13. Qd1 {[%clk 0:02:32]}  Be6 {[%clk 0:01:54]} 14. g3 {[%clk 0:02:19]}  Bg4 {[%clk 0:01:43]} 15. Bg2 {[%clk 0:02:17]}  Qd6 {[%clk 0:01:38]} 16. Qc2 {[%clk 0:02:07]}  Bxf3 {[%clk 0:01:37]} 17. Bxf3 {[%clk 0:02:07]}  Rfe8 {[%clk 0:01:26]} 18. O-O {[%clk 0:02:07]}  Re7 {[%clk 0:01:26]} 19. Rc5 {[%clk 0:02:05]}  Rd8 {[%clk 0:01:14]} 20. Bxd5 {[%clk 0:02:01]}  Qxd5 {[%clk 0:01:14]} 21. Rxd5 {[%clk 0:02:00]}  Rxd5 {[%clk 0:01:15]} 22. b4 {[%clk 0:01:53]}  h5 {[%clk 0:01:02]} 23. h4 {[%clk 0:01:48]}  g6 {[%clk 0:01:02]} 24. Rc1 {[%clk 0:01:48]}  Rf5 {[%clk 0:00:59]} 25. Qb3 {[%clk 0:01:45]}  Kg7 {[%clk 0:00:55]} 26. a4 {[%clk 0:01:45]}  Nd8 {[%clk 0:00:47]} 27. Rc5 {[%clk 0:01:41]}  Rf6 {[%clk 0:00:42]} 28. b5 {[%clk 0:01:37]}  axb5 {[%clk 0:00:39]} 29. axb5 {[%clk 0:01:38]}  Rb6 {[%clk 0:00:38]} 30. Qd5 {[%clk 0:01:33]}  Ne6 {[%clk 0:00:36]} 31. Qe5+ {[%clk 0:01:33]}  Kg8 {[%clk 0:00:19]} 32. d5 {[%clk 0:01:23]}  Nxc5 {[%clk 0:00:11]} 33. Qxe7 {[%clk 0:01:23]}  Na4 {[%clk 0:00:07]} 34. Qxc7 {[%clk 0:01:22]}  Rxb5 {[%clk 0:00:07]} 35. d6 {[%clk 0:01:22]}  Nc5 {[%clk 0:00:06]} 36. d7 {[%clk 0:01:22]}  Nxd7 {[%clk 0:00:06]} 37. Qxd7 {[%clk 0:01:22]}  Rb1+ {[%clk 0:00:04]} 38. Kg2 {[%clk 0:01:23]}  b5 {[%clk 0:00:04]} 39. Qd3 {[%clk 0:01:22]}  Rb2 {[%clk 0:00:03]} 40. Qd8+ {[%clk 0:01:22]}  Kh7 {[%clk 0:00:02]} 41. Qf8 {[%clk 0:01:21]} 1-0


[Site "https://www.chess.com"]

[Event "Titled Tuesday Blitz April 11 Late 2023"]
[White "Klekowski, Maciej"]
[Black "Sztokbant, Bernardo Vainzoff"]
[WhiteFideId "1132717"]
[BlackFideId "2115956"]
[WhiteElo "2540"]
[BlackElo "2222"]
[Result "1/2-1/2"]
[Round "03"]
[TimeControl "180+2"]
[Date "2023.04.11"]
[WhiteClock "0:00:58"]
[BlackClock "0:00:06"]

1. c4 {[%clk 0:02:58]}  Nf6 {[%clk 0:02:56]} 2. Nc3 {[%clk 0:02:56]}  g6 {[%clk 0:02:57]} 3. d4 {[%clk 0:02:56]}  d5 {[%clk 0:02:56]} 4. cxd5 {[%clk 0:02:56]}  Nxd5 {[%clk 0:02:57]} 5. Bd2 {[%clk 0:02:56]}  Bg7 {[%clk 0:02:57]} 6. e4 {[%clk 0:02:56]}  Nxc3 {[%clk 0:02:56]} 7. Bxc3 {[%clk 0:02:56]}  O-O {[%clk 0:02:57]} 8. h4 {[%clk 0:02:56]}  h5 {[%clk 0:02:56]} 9. Be2 {[%clk 0:02:55]}  c5 {[%clk 0:02:52]} 10. d5 {[%clk 0:02:54]}  e6 {[%clk 0:02:42]} 11. g4 {[%clk 0:02:52]}  exd5 {[%clk 0:02:35]} 12. Bxg7 {[%clk 0:02:50]}  Kxg7 {[%clk 0:02:34]} 13. gxh5 {[%clk 0:02:51]}  dxe4 {[%clk 0:02:34]} 14. Qc1 {[%clk 0:02:50]}  Rh8 {[%clk 0:02:19]} 15. Qxc5 {[%clk 0:02:45]}  Nc6 {[%clk 0:02:14]} 16. Rd1 {[%clk 0:02:44]}  Qf6 {[%clk 0:02:05]} 17. hxg6 {[%clk 0:02:37]}  fxg6 {[%clk 0:01:58]} 18. Rd6 {[%clk 0:02:32]}  Qxb2 {[%clk 0:01:54]} 19. Kf1 {[%clk 0:02:26]}  Bf5 {[%clk 0:01:20]} 20. h5 {[%clk 0:02:26]}  Raf8 {[%clk 0:01:12]} 21. h6+ {[%clk 0:02:20]}  Rxh6 {[%clk 0:01:02]} 22. Rxh6 {[%clk 0:02:19]}  Kxh6 {[%clk 0:01:03]} 23. Rxc6 {[%clk 0:02:20]}  bxc6 {[%clk 0:00:58]} 24. Qxf8+ {[%clk 0:02:20]}  Kh7 {[%clk 0:00:58]} 25. Qf7+ {[%clk 0:02:17]}  Kh6 {[%clk 0:00:58]} 26. Qf8+ {[%clk 0:02:16]}  Kh7 {[%clk 0:00:53]} 27. Qe7+ {[%clk 0:02:16]}  Kh6 {[%clk 0:00:51]} 28. Qxa7 {[%clk 0:02:12]}  Qc1+ {[%clk 0:00:51]} 29. Kg2 {[%clk 0:01:50]}  Qg5+ {[%clk 0:00:51]} 30. Kh2 {[%clk 0:01:49]}  Qh4+ {[%clk 0:00:40]} 31. Nh3 {[%clk 0:01:48]}  Qxh3+ {[%clk 0:00:40]} 32. Kg1 {[%clk 0:01:48]}  Bg4 {[%clk 0:00:29]} 33. Bf1 {[%clk 0:01:45]}  Qf3 {[%clk 0:00:20]} 34. a4 {[%clk 0:01:44]}  Qd1 {[%clk 0:00:13]} 35. a5 {[%clk 0:01:43]}  g5 {[%clk 0:00:11]} 36. Qe3 {[%clk 0:01:41]}  Bf3 {[%clk 0:00:11]} 37. a6 {[%clk 0:01:41]}  Qd7 {[%clk 0:00:11]} 38. Bc4 {[%clk 0:01:25]}  Qd1+ {[%clk 0:00:08]} 39. Bf1 {[%clk 0:01:25]}  Qd7 {[%clk 0:00:09]} 40. Qc5 {[%clk 0:00:59]}  Qg4+ {[%clk 0:00:08]} 41. Kh2 {[%clk 0:00:59]}  Qf4+ {[%clk 0:00:07]} 42. Kg1 {[%clk 0:00:58]}  Qg4+ {[%clk 0:00:05]} 43. Kh2 {[%clk 0:00:58]}  Qf4+ {[%clk 0:00:05]} 44. Kg1 {[%clk 0:00:58]}  Qg4+ {[%clk 0:00:06]} 1/2-1/2


[Site "https://www.chess.com"]

[Event "Titled Tuesday Blitz April 11 Late 2023"]
[White "Idani, Pouya"]
[Black "Shapiro, Viktor"]
[WhiteFideId "12510130"]
[BlackFideId "4175700"]
[WhiteElo "2574"]
[BlackElo "2152"]
[Result "1-0"]
[Round "03"]
[TimeControl "180+2"]
[Date "2023.04.11"]
[WhiteClock "0:00:13"]
[BlackClock "0:00:08"]

1. e4 {[%clk 0:03:00]}  Nf6 {[%clk 0:03:00]} 2. e5 {[%clk 0:02:58]}  Nd5 {[%clk 0:03:00]} 3. c4 {[%clk 0:02:59]}  Nb6 {[%clk 0:03:00]} 4. d4 {[%clk 0:02:59]}  d6 {[%clk 0:03:01]} 5. f4 {[%clk 0:03:00]}  dxe5 {[%clk 0:03:01]} 6. fxe5 {[%clk 0:03:00]}  c5 {[%clk 0:03:02]} 7. d5 {[%clk 0:02:55]}  g6 {[%clk 0:03:02]} 8. Nc3 {[%clk 0:02:50]}  Bg7 {[%clk 0:03:03]} 9. Bf4 {[%clk 0:02:45]}  O-O {[%clk 0:03:02]} 10. Nf3 {[%clk 0:02:44]}  Bg4 {[%clk 0:03:02]} 11. h3 {[%clk 0:02:39]}  Bxf3 {[%clk 0:03:01]} 12. Qxf3 {[%clk 0:02:39]}  e6 {[%clk 0:03:02]} 13. O-O-O {[%clk 0:02:27]}  N8d7 {[%clk 0:03:01]} 14. Qe3 {[%clk 0:02:21]}  exd5 {[%clk 0:02:59]} 15. cxd5 {[%clk 0:02:17]}  Re8 {[%clk 0:02:59]} 16. e6 {[%clk 0:02:10]}  Qf6 {[%clk 0:02:18]} 17. Bg5 {[%clk 0:01:51]}  Qe5 {[%clk 0:02:17]} 18. Qxe5 {[%clk 0:01:13]}  Nxe5 {[%clk 0:02:17]} 19. Bb5 {[%clk 0:01:12]}  fxe6 {[%clk 0:02:07]} 20. Bxe8 {[%clk 0:01:12]}  Rxe8 {[%clk 0:02:07]} 21. dxe6 {[%clk 0:01:08]}  Nc6 {[%clk 0:01:18]} 22. e7 {[%clk 0:00:58]}  h6 {[%clk 0:01:17]} 23. Rd8 {[%clk 0:00:57]}  hxg5 {[%clk 0:00:51]} 24. Rxe8+ {[%clk 0:00:56]}  Kf7 {[%clk 0:00:52]} 25. Rd8 {[%clk 0:00:48]}  Kxe7 {[%clk 0:00:49]} 26. Rdd1 {[%clk 0:00:40]}  Nd4 {[%clk 0:00:32]} 27. Rhe1+ {[%clk 0:00:40]}  Kd7 {[%clk 0:00:26]} 28. Ne2 {[%clk 0:00:40]}  Nd5 {[%clk 0:00:22]} 29. Nxd4 {[%clk 0:00:37]}  cxd4 {[%clk 0:00:21]} 30. Re4 {[%clk 0:00:35]}  Kd6 {[%clk 0:00:19]} 31. Kd2 {[%clk 0:00:31]}  Be5 {[%clk 0:00:17]} 32. a3 {[%clk 0:00:29]}  b5 {[%clk 0:00:16]} 33. Rde1 {[%clk 0:00:26]}  Bf4+ {[%clk 0:00:15]} 34. Kd3 {[%clk 0:00:27]}  Be3 {[%clk 0:00:16]} 35. g3 {[%clk 0:00:17]}  a5 {[%clk 0:00:12]} 36. Rxd4 {[%clk 0:00:16]}  Bxd4 {[%clk 0:00:12]} 37. Kxd4 {[%clk 0:00:16]}  Nb6 {[%clk 0:00:11]} 38. Re5 {[%clk 0:00:13]}  b4 {[%clk 0:00:09]} 39. Rxa5 {[%clk 0:00:13]}  bxa3 {[%clk 0:00:09]} 40. bxa3 {[%clk 0:00:13]}  Nd7 {[%clk 0:00:06]} 41. Rd5+ {[%clk 0:00:13]}  Ke6 {[%clk 0:00:07]} 42. Rxd7 {[%clk 0:00:13]}  Kxd7 {[%clk 0:00:08]} 43. Ke5 {[%clk 0:00:13]} 1-0


[Site "https://www.chess.com"]

[Event "Titled Tuesday Blitz April 11 Late 2023"]
[White "Adewumi, Tanitoluwa"]
[Black "Bochnicka, Vladimir"]
[WhiteFideId "30966396"]
[BlackFideId "14943450"]
[WhiteElo "2283"]
[BlackElo "2094"]
[Result "1-0"]
[Round "03"]
[TimeControl "180+2"]
[Date "2023.04.11"]
[WhiteClock "0:00:03"]
[BlackClock "0:00:05"]

1. e4 {[%clk 0:03:00]}  c5 {[%clk 0:02:55]} 2. Nf3 {[%clk 0:02:43]}  Nc6 {[%clk 0:02:55]} 3. Bb5 {[%clk 0:02:40]}  e6 {[%clk 0:02:52]} 4. Bxc6 {[%clk 0:02:36]}  bxc6 {[%clk 0:02:51]} 5. b3 {[%clk 0:02:35]}  d5 {[%clk 0:02:40]} 6. d3 {[%clk 0:02:25]}  Be7 {[%clk 0:02:33]} 7. Bb2 {[%clk 0:02:24]}  Nf6 {[%clk 0:02:32]} 8. O-O {[%clk 0:02:21]}  O-O {[%clk 0:02:29]} 9. Qe1 {[%clk 0:02:21]}  c4 {[%clk 0:02:03]} 10. e5 {[%clk 0:02:12]}  Nd7 {[%clk 0:02:01]} 11. dxc4 {[%clk 0:02:12]}  dxc4 {[%clk 0:02:00]} 12. Nbd2 {[%clk 0:02:09]}  Ba6 {[%clk 0:01:52]} 13. Nxc4 {[%clk 0:02:06]}  Bxc4 {[%clk 0:01:52]} 14. bxc4 {[%clk 0:02:07]}  Rb8 {[%clk 0:01:49]} 15. Bc3 {[%clk 0:02:02]}  Bc5 {[%clk 0:01:38]} 16. Qe4 {[%clk 0:01:58]}  Qe7 {[%clk 0:01:21]} 17. Qxc6 {[%clk 0:01:41]}  Rfc8 {[%clk 0:01:21]} 18. Qe4 {[%clk 0:01:40]}  Nb6 {[%clk 0:01:15]} 19. Rab1 {[%clk 0:01:34]}  h6 {[%clk 0:00:58]} 20. Rfd1 {[%clk 0:01:22]}  Qc7 {[%clk 0:00:55]} 21. Kf1 {[%clk 0:00:52]}  Be7 {[%clk 0:00:43]} 22. Ba5 {[%clk 0:00:45]}  Qxc4+ {[%clk 0:00:37]} 23. Qxc4 {[%clk 0:00:40]}  Rxc4 {[%clk 0:00:33]} 24. Bxb6 {[%clk 0:00:38]}  axb6 {[%clk 0:00:30]} 25. Rd2 {[%clk 0:00:30]}  Bc5 {[%clk 0:00:30]} 26. Ke2 {[%clk 0:00:28]}  Ra8 {[%clk 0:00:30]} 27. Rb2 {[%clk 0:00:26]}  Ra3 {[%clk 0:00:18]} 28. Rd3 {[%clk 0:00:21]}  Raa4 {[%clk 0:00:12]} 29. Nd2 {[%clk 0:00:16]}  Rh4 {[%clk 0:00:11]} 30. h3 {[%clk 0:00:14]}  Rh5 {[%clk 0:00:11]} 31. Nf3 {[%clk 0:00:10]}  g5 {[%clk 0:00:09]} 32. Nh2 {[%clk 0:00:06]}  Rhh4 {[%clk 0:00:08]} 33. Ng4 {[%clk 0:00:06]}  h5 {[%clk 0:00:07]} 34. Nf6+ {[%clk 0:00:06]}  Kg7 {[%clk 0:00:07]} 35. g4 {[%clk 0:00:06]}  Bd4 {[%clk 0:00:06]} 36. c3 {[%clk 0:00:04]}  Bxe5 {[%clk 0:00:06]} 37. Nxh5+ {[%clk 0:00:04]}  Kg6 {[%clk 0:00:05]} 38. Re3 {[%clk 0:00:05]}  Bf4 {[%clk 0:00:05]} 39. Rf3 {[%clk 0:00:05]}  Rxh5 {[%clk 0:00:05]} 40. gxh5+ {[%clk 0:00:05]}  Kxh5 {[%clk 0:00:05]} 41. Rxb6 {[%clk 0:00:06]}  Rxa2+ {[%clk 0:00:05]} 42. Kd3 {[%clk 0:00:06]}  Rd2+ {[%clk 0:00:05]} 43. Kc4 {[%clk 0:00:06]}  e5 {[%clk 0:00:03]} 44. Rf6 {[%clk 0:00:06]}  e4 {[%clk 0:00:03]} 45. R3xf4 {[%clk 0:00:05]}  gxf4 {[%clk 0:00:03]} 46. Rxf4 {[%clk 0:00:06]}  Rd3 {[%clk 0:00:03]} 47. Rxf7 {[%clk 0:00:04]}  Rxh3 {[%clk 0:00:04]} 48. Rf4 {[%clk 0:00:04]}  e3 {[%clk 0:00:03]} 49. fxe3 {[%clk 0:00:04]}  Rxe3 {[%clk 0:00:04]} 50. Kb4 {[%clk 0:00:05]}  Kg5 {[%clk 0:00:04]} 51. Rf1 {[%clk 0:00:05]}  Re6 {[%clk 0:00:04]} 52. c4 {[%clk 0:00:05]}  Rb6+ {[%clk 0:00:04]} 53. Ka5 {[%clk 0:00:05]}  Rb8 {[%clk 0:00:05]} 54. c5 {[%clk 0:00:05]}  Rc8 {[%clk 0:00:05]} 55. Kb6 {[%clk 0:00:05]}  Rb8+ {[%clk 0:00:06]} 56. Kc7 {[%clk 0:00:06]}  Rb2 {[%clk 0:00:06]} 57. c6 {[%clk 0:00:06]}  Rc2 {[%clk 0:00:06]} 58. Kd7 {[%clk 0:00:06]}  Rd2+ {[%clk 0:00:07]} 59. Kc8 {[%clk 0:00:06]}  Rc2 {[%clk 0:00:07]} 60. c7 {[%clk 0:00:07]}  Rd2 {[%clk 0:00:08]} 61. Rf8 {[%clk 0:00:04]}  Kg6 {[%clk 0:00:08]} 62. Rd8 {[%clk 0:00:03]}  Rc2 {[%clk 0:00:08]} 63. Kd7 {[%clk 0:00:02]}  Rd2+ {[%clk 0:00:09]} 64. Ke8 {[%clk 0:00:03]}  Re2+ {[%clk 0:00:09]} 65. Kf8 {[%clk 0:00:03]}  Rc2 {[%clk 0:00:05]} 66. c8=Q {[%clk 0:00:03]} 1-0


[Site "https://www.chess.com"]

[Event "Titled Tuesday Blitz April 11 Late 2023"]
[White "Novik, Maxim"]
[Black "Djordjevic, Vuk"]
[WhiteFideId "4102924"]
[BlackFideId "902098"]
[WhiteElo "2287"]
[BlackElo "2452"]
[Result "1-0"]
[Round "03"]
[TimeControl "180+2"]
[Date "2023.04.11"]
[WhiteClock "0:00:08"]
[BlackClock "0:00:04"]

1. c4 {[%clk 0:03:00]}  e5 {[%clk 0:03:00]} 2. Nc3 {[%clk 0:03:00]}  Nc6 {[%clk 0:03:00]} 3. g3 {[%clk 0:03:00]}  g6 {[%clk 0:03:01]} 4. Bg2 {[%clk 0:03:00]}  Bg7 {[%clk 0:03:01]} 5. Rb1 {[%clk 0:03:01]}  d6 {[%clk 0:03:02]} 6. b4 {[%clk 0:03:01]}  a6 {[%clk 0:03:02]} 7. a4 {[%clk 0:03:00]}  Be6 {[%clk 0:02:41]} 8. b5 {[%clk 0:02:59]}  axb5 {[%clk 0:02:42]} 9. axb5 {[%clk 0:02:59]}  Na5 {[%clk 0:02:43]} 10. d3 {[%clk 0:02:59]}  f5 {[%clk 0:02:43]} 11. Nd5 {[%clk 0:02:45]}  c6 {[%clk 0:02:20]} 12. bxc6 {[%clk 0:02:37]}  bxc6 {[%clk 0:02:21]} 13. Bg5 {[%clk 0:02:25]}  Nf6 {[%clk 0:01:58]} 14. Nxf6+ {[%clk 0:01:58]}  Bxf6 {[%clk 0:01:37]} 15. Bxf6 {[%clk 0:01:58]}  Qxf6 {[%clk 0:01:37]} 16. Nf3 {[%clk 0:01:56]}  e4 {[%clk 0:01:08]} 17. Nd2 {[%clk 0:01:55]}  exd3 {[%clk 0:00:59]} 18. exd3 {[%clk 0:01:55]}  O-O {[%clk 0:00:57]} 19. O-O {[%clk 0:01:54]}  d5 {[%clk 0:00:47]} 20. c5 {[%clk 0:01:48]}  Qd4 {[%clk 0:00:41]} 21. Qc2 {[%clk 0:01:47]}  f4 {[%clk 0:00:38]} 22. Nf3 {[%clk 0:01:47]}  Qf6 {[%clk 0:00:37]} 23. Rb4 {[%clk 0:01:42]}  fxg3 {[%clk 0:00:29]} 24. fxg3 {[%clk 0:01:42]}  Qe7 {[%clk 0:00:27]} 25. Re1 {[%clk 0:01:33]}  Qd7 {[%clk 0:00:28]} 26. Ne5 {[%clk 0:01:24]}  Qg7 {[%clk 0:00:28]} 27. Rb6 {[%clk 0:01:09]}  Bf5 {[%clk 0:00:22]} 28. Qb2 {[%clk 0:01:01]}  Rfe8 {[%clk 0:00:19]} 29. h3 {[%clk 0:00:47]}  Rac8 {[%clk 0:00:13]} 30. g4 {[%clk 0:00:46]}  Be4 {[%clk 0:00:06]} 31. dxe4 {[%clk 0:00:15]}  Qxe5 {[%clk 0:00:05]} 32. Qxe5 {[%clk 0:00:13]}  Rxe5 {[%clk 0:00:06]} 33. Rf1 {[%clk 0:00:09]}  Nc4 {[%clk 0:00:05]} 34. Rb7 {[%clk 0:00:09]}  Rf8 {[%clk 0:00:04]} 35. Rxf8+ {[%clk 0:00:08]}  Kxf8 {[%clk 0:00:04]} 36. exd5 {[%clk 0:00:09]}  cxd5 {[%clk 0:00:05]} 37. c6 {[%clk 0:00:09]}  Re1+ {[%clk 0:00:04]} 38. Kf2 {[%clk 0:00:08]}  Nd6 {[%clk 0:00:04]} 39. Kxe1 {[%clk 0:00:08]} 1-0


[Site "https://www.chess.com"]